[Event "MCR rapid mládeže 2023 U16"]
[Site "Harachov, Czech Republic"]
[Date "2023.09.10"]
[Round "8.12"]
[White "Dorazilova, Kristyna"]
[Black "Bartova, Hana"]
[Result "0-1"]
[TimeControl "20min+5s/move"]
[WhiteElo "1517"]
[BlackElo "1389"]

1. e4 {[%clk 00:20:09]} e5 {[%clk 00:20:08]} {[%emt 00:00:02]} 2. Nc3 {[%clk
00:20:12]} {[%emt 00:00:02]} Nc6 {[%clk 00:19:50]} {[%emt 00:00:23]} 3. g3
{[%clk 00:20:14]} {[%emt 00:00:03]} Bc5 {[%clk 00:19:32]} {[%emt 00:00:22]} 4.
Bg2 {[%clk 00:20:16]} {[%emt 00:00:04]} d6 {[%clk 00:19:22]} {[%emt 00:00:16]}
5. Na4 {[%clk 00:19:46]} {[%emt 00:00:35]} Bb6 {[%clk 00:19:22]} {[%emt
00:00:05]} 6. Nxb6 {[%clk 00:19:49]} {[%emt 00:00:02]} axb6 {[%clk 00:19:25]}
{[%emt 00:00:01]} 7. Ne2 {[%clk 00:19:52]} {[%emt 00:00:02]} Nf6 {[%clk
00:19:14]} {[%emt 00:00:16]} 8. O-O {[%clk 00:19:40]} {[%emt 00:00:17]} Bd7
{[%clk 00:18:46]} {[%emt 00:00:34]} 9. d3 {[%clk 00:19:31]} {[%emt 00:00:14]}
Qc8 {[%clk 00:18:45]} {[%emt 00:00:06]} 10. f4 {[%clk 00:19:04]} {[%emt
00:00:31]} Bg4 {[%clk 00:17:09]} {[%emt 00:01:42]} 11. f5 {[%clk 00:17:45]}
{[%emt 00:01:24]} Nd4 {[%clk 00:16:35]} {[%emt 00:00:39]} 12. Rf2 {[%clk
00:16:37]} {[%emt 00:01:13]} Bxe2 {[%clk 00:15:18]} {[%emt 00:01:23]} 13. Rxe2
{[%clk 00:16:41]} {[%emt 00:00:01]} Nxe2+ {[%clk 00:15:21]} {[%emt 00:00:02]}
14. Qxe2 {[%clk 00:16:45]} {[%emt 00:00:01]} h6 {[%clk 00:14:54]} {[%emt
00:00:32]} 15. d4 {[%clk 00:15:35]} {[%emt 00:01:14]} O-O {[%clk 00:14:15]}
{[%emt 00:00:44]} 16. dxe5 {[%clk 00:14:41]} {[%emt 00:01:00]} dxe5 {[%clk
00:14:19]} {[%emt 00:00:01]} 17. g4 {[%clk 00:14:37]} {[%emt 00:00:08]} Nh7
{[%clk 00:13:20]} {[%emt 00:01:03]} 18. h4 {[%clk 00:14:03]} {[%emt 00:00:39]}
Qd8 {[%clk 00:12:54]} {[%emt 00:00:31]} 19. g5 {[%clk 00:11:43]} {[%emt
00:02:25]} hxg5 {[%clk 00:11:58]} {[%emt 00:01:01]} 20. hxg5 {[%clk 00:11:45]}
{[%emt 00:00:03]} Nxg5 {[%clk 00:10:15]} {[%emt 00:01:48]} 21. Qg4 {[%clk
00:11:19]} {[%emt 00:00:31]} Nh7 {[%clk 00:10:06]} {[%emt 00:00:14]} 22. Kh2
{[%clk 00:10:22]} {[%emt 00:01:03]} Qf6 {[%clk 00:08:45]} {[%emt 00:01:25]} 23.
Be3 {[%clk 00:09:24]} {[%emt 00:01:03]} g5 {[%clk 00:05:05]} {[%emt 00:03:46]}
24. fxg6 {[%clk 00:05:24]} {[%emt 00:04:05]} Qxg6 {[%clk 00:05:06]} {[%emt
00:00:04]} 25. Qd7 {[%clk 00:04:51]} {[%emt 00:00:39]} Nf6 {[%clk 00:04:03]}
{[%emt 00:01:07]} 26. Qh3 {[%clk 00:03:29]} {[%emt 00:01:28]} Ng4+ {[%clk
00:03:15]} {[%emt 00:00:53]} 27. Kg1 {[%clk 00:03:31]} {[%emt 00:00:02]} Nxe3
{[%clk 00:03:17]} {[%emt 00:00:03]} 28. Qxe3 {[%clk 00:03:35]} {[%emt
00:00:01]} Rfd8 {[%clk 00:02:25]} {[%emt 00:00:57]} 29. Kf2 {[%clk 00:03:12]}
{[%emt 00:00:28]} Qf6+ {[%clk 00:01:59]} {[%emt 00:00:31]} 30. Ke2 {[%clk
00:03:12]} {[%emt 00:00:05]} Rd6 {[%clk 00:01:33]} {[%emt 00:00:32]} 31. Rf1
{[%clk 00:02:24]} {[%emt 00:00:53]} Qh6 {[%clk 00:01:36]} {[%emt 00:00:02]} 32.
Qg3+ {[%clk 00:01:59]} {[%emt 00:00:31]} Qg6 {[%clk 00:01:27]} {[%emt
00:00:12]} 33. Qh3 {[%clk 00:01:24]} {[%emt 00:00:40]} Rad8 {[%clk 00:01:13]}
{[%emt 00:00:20]} 34. Kf3 {[%clk 00:01:07]} {[%emt 00:00:21]} Rf6+ {[%clk
00:01:11]} {[%emt 00:00:07]} 35. Ke2 {[%clk 00:01:06]} {[%emt 00:00:07]} Rxf1
{[%clk 00:01:14]} {[%emt 00:00:01]} 36. Bxf1 {[%clk 00:01:04]} {[%emt
00:00:07]} Qxe4+ {[%clk 00:01:15]} {[%emt 00:00:03]} 37. Kf2 {[%clk 00:00:53]}
{[%emt 00:00:15]} Rd2+ {[%clk 00:01:15]} {[%emt 00:00:06]} 38. Kg1 {[%clk
00:00:57]} {[%emt 00:00:01]} Qd4+ {[%clk 00:01:07]} {[%emt 00:00:11]} 39. Kh1
{[%clk 00:00:58]} {[%emt 00:00:05]} Qd5+ {[%clk 00:01:06]} {[%emt 00:00:06]} 40.
Kg1 {[%clk 00:00:46]} {[%emt 00:00:17]} Qe6 {[%clk 00:00:47]} {[%emt 00:00:24]}
41. Qg3+ {[%clk 00:00:39]} {[%emt 00:00:12]} Qg6 {[%clk 00:00:51]} {[%emt
00:00:02]} 42. Qxg6+ {[%clk 00:00:39]} {[%emt 00:00:05]} fxg6 {[%clk 00:00:55]}
43. Bd3 {[%clk 00:00:42]} {[%emt 00:00:02]} Kf7 {[%clk 00:00:50]} {[%emt
00:00:10]} 44. Kf1 {[%clk 00:00:46]} {[%emt 00:00:01]} Rd1+ {[%clk 00:00:52]}
{[%emt 00:00:03]} 45. Ke2 {[%clk 00:00:49]} {[%emt 00:00:02]} Rh1 {[%clk
00:00:54]} {[%emt 00:00:02]} 46. Be4 {[%clk 00:00:49]} {[%emt 00:00:05]} Rh2+
{[%clk 00:00:57]} {[%emt 00:00:03]} 47. Kd3 {[%clk 00:00:53]} {[%emt 00:00:01]}
c6 {[%clk 00:01:00]} {[%emt 00:00:02]} 48. Kc4 {[%clk 00:00:51]} {[%emt
00:00:07]} g5 {[%clk 00:00:51]} {[%emt 00:00:14]} 49. b4 {[%clk 00:00:48]}
{[%emt 00:00:08]} g4 {[%clk 00:00:46]} {[%emt 00:00:10]} 50. b5 {[%clk
00:00:51]} {[%emt 00:00:02]} cxb5+ {[%clk 00:00:41]} {[%emt 00:00:10]} 51. Kxb5
{[%clk 00:00:53]} {[%emt 00:00:03]} g3 {[%clk 00:00:43]} {[%emt 00:00:03]} 52.
Kxb6 {[%clk 00:00:45]} {[%emt 00:00:13]} g2 {[%clk 00:00:46]} {[%emt 00:00:02]}
53. Bxg2 {[%clk 00:00:49]} {[%emt 00:00:01]} Rxg2 {[%clk 00:00:50]} {[%emt
00:00:01]} 54. a4 {[%clk 00:00:52]} {[%emt 00:00:02]} Rxc2 {[%clk 00:00:53]}
{[%emt 00:00:02]} 55. a5 {[%clk 00:00:52]} {[%emt 00:00:04]} Kf6 {[%clk
00:00:53]} {[%emt 00:00:05]} 56. Kxb7 {[%clk 00:00:56]} {[%emt 00:00:02]} Kf5
{[%clk 00:00:56]} {[%emt 00:00:02]} 57. a6 {[%clk 00:00:59]} {[%emt 00:00:02]}
Ra2 {[%clk 00:00:59]} {[%emt 00:00:01]} 58. a7 {[%clk 00:01:03]} {[%emt
00:00:01]} Rxa7+ {[%clk 00:01:03]} {[%emt 00:00:01]} 59. Kxa7 {[%clk 00:01:07]}
{[%emt 00:00:01]} e4 {[%clk 00:01:07]} 0-1

[Event "MCR rapid mládeže 2023 U16"]
[Site "Harachov, Czech Republic"]
[Date "2023.09.10"]
[Round "8.13"]
[White "Kaplanova, Dominika"]
[Black "Kovarova, Karolina"]
[Result "1-0"]
[TimeControl "20min+5s/move"]
[WhiteElo "1461"]
[BlackElo "1006"]

1. e4 {[%clk 00:20:01]} {[%emt 00:00:09]} e5 {[%clk 00:20:09]} {[%emt
00:00:02]} 2. Nf3 {[%clk 00:20:04]} {[%emt 00:00:02]} Nc6 {[%clk 00:20:12]}
{[%emt 00:00:01]} 3. c3 {[%clk 00:20:00]} {[%emt 00:00:08]} Nf6 {[%clk
00:20:05]} {[%emt 00:00:12]} 4. d3 {[%clk 00:19:52]} {[%emt 00:00:13]} Bc5
{[%clk 00:19:29]} {[%emt 00:00:42]} 5. Be2 {[%clk 00:19:38]} {[%emt 00:00:18]}
d5 {[%clk 00:18:24]} {[%emt 00:01:10]} 6. exd5 {[%clk 00:19:20]} {[%emt
00:00:23]} Nxd5 {[%clk 00:17:54]} {[%emt 00:00:35]} 7. O-O {[%clk 00:18:13]}
{[%emt 00:01:12]} Nf4 {[%clk 00:16:43]} {[%emt 00:01:15]} 8. d4 {[%clk
00:16:01]} {[%emt 00:02:17]} Nxe2+ {[%clk 00:14:37]} {[%emt 00:02:11]} 9. Qxe2
{[%clk 00:16:04]} {[%emt 00:00:02]} Be7 {[%clk 00:12:08]} {[%emt 00:02:34]} 10.
Nxe5 {[%clk 00:15:42]} {[%emt 00:00:26]} O-O {[%clk 00:11:13]} {[%emt
00:01:01]} 11. Nxc6 {[%clk 00:15:00]} {[%emt 00:00:47]} bxc6 {[%clk 00:11:13]}
{[%emt 00:00:05]} 12. Bf4 {[%clk 00:14:16]} {[%emt 00:00:49]} Re8 {[%clk
00:10:31]} {[%emt 00:00:48]} 13. Qf3 {[%clk 00:13:02]} {[%emt 00:01:16]} Bd7
{[%clk 00:09:10]} {[%emt 00:01:29]} 14. Nd2 {[%clk 00:11:49]} {[%emt 00:01:18]}
Qc8 {[%clk 00:08:37]} {[%emt 00:00:38]} 15. Qg3 {[%clk 00:11:02]} {[%emt
00:00:51]} Bf6 {[%clk 00:07:18]} {[%emt 00:01:25]} 16. Bg5 {[%clk 00:08:21]}
{[%emt 00:02:44]} Be7 {[%clk 00:06:19]} {[%emt 00:01:05]} 17. Bxe7 {[%clk
00:07:58]} {[%emt 00:00:29]} Rxe7 {[%clk 00:06:21]} {[%emt 00:00:03]} 18. Rfe1
{[%clk 00:07:26]} {[%emt 00:00:36]} Rxe1+ {[%clk 00:04:50]} {[%emt 00:01:36]}
19. Rxe1 {[%clk 00:07:29]} {[%emt 00:00:02]} Qb7 {[%clk 00:04:34]} {[%emt
00:00:21]} 20. Nb3 {[%clk 00:06:05]} {[%emt 00:01:30]} h6 {[%clk 00:04:24]}
{[%emt 00:00:15]} 21. Nc5 {[%clk 00:05:36]} {[%emt 00:00:34]} Qc8 {[%clk
00:02:38]} {[%emt 00:01:51]} 22. Nxd7 {[%clk 00:04:19]} {[%emt 00:01:22]} Qxd7
{[%clk 00:02:40]} {[%emt 00:00:03]} 23. h3 {[%clk 00:04:10]} {[%emt 00:00:13]}
Rb8 {[%clk 00:02:25]} {[%emt 00:00:20]} 24. b3 {[%clk 00:04:09]} {[%emt
00:00:06]} Rb5 {[%clk 00:02:14]} {[%emt 00:00:15]} 25. Qe3 {[%clk 00:03:42]}
{[%emt 00:00:31]} Rb8 {[%clk 00:02:03]} {[%emt 00:00:17]} 26. Qe7 {[%clk
00:03:14]} {[%emt 00:00:33]} Qc8 {[%clk 00:01:38]} {[%emt 00:00:30]} 27. Re3
{[%clk 00:03:03]} {[%emt 00:00:14]} Qd8 {[%clk 00:00:56]} {[%emt 00:00:50]} 28.
Qxd8+ {[%clk 00:02:49]} {[%emt 00:00:19]} Rxd8 {[%clk 00:00:59]} {[%emt
00:00:02]} 29. Re7 {[%clk 00:02:50]} {[%emt 00:00:03]} Rc8 {[%clk 00:00:56]}
{[%emt 00:00:09]} 30. Re5 {[%clk 00:02:53]} {[%emt 00:00:02]} a6 {[%clk
00:00:52]} {[%emt 00:00:08]} 31. Ra5 {[%clk 00:02:38]} {[%emt 00:00:19]} Ra8
{[%clk 00:00:47]} {[%emt 00:00:11]} 32. Kf1 {[%clk 00:02:42]} Kf8 {[%clk
00:00:45]} {[%emt 00:00:07]} 33. Rc5 {[%clk 00:02:46]} {[%emt 00:00:01]} Ke8
{[%clk 00:00:33]} {[%emt 00:00:17]} 34. Rxc6 {[%clk 00:02:49]} {[%emt
00:00:01]} Kd7 {[%clk 00:00:34]} {[%emt 00:00:03]} 35. Rc5 {[%clk 00:02:48]}
{[%emt 00:00:06]} Kd6 {[%clk 00:00:35]} {[%emt 00:00:04]} 36. Re5 {[%clk
00:02:45]} {[%emt 00:00:08]} a5 {[%clk 00:00:36]} {[%emt 00:00:05]} 37. Ke2
{[%clk 00:02:31]} {[%emt 00:00:19]} a4 {[%clk 00:00:32]} {[%emt 00:00:09]} 38.
b4 {[%clk 00:02:34]} {[%emt 00:00:01]} Rb8 {[%clk 00:00:26]} {[%emt 00:00:11]}
39. Kd3 {[%clk 00:02:25]} {[%emt 00:00:14]} f6 {[%clk 00:00:22]} {[%emt
00:00:10]} 40. Ra5 {[%clk 00:02:17]} {[%emt 00:00:12]} Kc6 {[%clk 00:00:14]}
{[%emt 00:00:13]} 41. Rxa4 {[%clk 00:02:15]} {[%emt 00:00:07]} Kb5 {[%emt
00:00:04]} 42. Ra5+ {[%clk 00:02:17]} {[%emt 00:00:01]} Kb6 {[%clk 00:00:18]}
{[%emt 00:00:03]} 43. a4 {[%clk 00:02:15]} {[%emt 00:00:08]} Kb7 {[%clk
00:00:16]} {[%emt 00:00:06]} 44. Rb5+ {[%clk 00:02:19]} {[%emt 00:00:01]} Ka7
{[%clk 00:00:19]} {[%emt 00:00:02]} 45. Rxb8 {[%clk 00:02:23]} {[%emt
00:00:01]} Kxb8 {[%clk 00:00:23]} {[%emt 00:00:01]} 46. Kc4 {[%clk 00:02:26]}
{[%emt 00:00:02]} Kb7 {[%clk 00:00:25]} {[%emt 00:00:03]} 47. Kc5 {[%clk
00:02:30]} c6 {[%clk 00:00:25]} {[%emt 00:00:05]} 48. a5 {[%clk 00:02:34]}
{[%emt 00:00:01]} Kc7 {[%clk 00:00:24]} {[%emt 00:00:06]} 49. a6 {[%clk
00:02:38]} Kb8 {[%clk 00:00:26]} {[%emt 00:00:03]} 50. Kxc6 {[%clk 00:02:41]}
{[%emt 00:00:01]} Ka7 {[%clk 00:00:29]} {[%emt 00:00:02]} 51. b5 {[%clk
00:02:45]} Kb8 {[%clk 00:00:32]} {[%emt 00:00:03]} 52. b6 {[%clk 00:02:48]}
{[%emt 00:00:02]} Ka8 {[%clk 00:00:18]} {[%emt 00:00:19]} 53. a7 {[%clk
00:02:46]} {[%emt 00:00:07]} g5 {[%clk 00:00:19]} {[%emt 00:00:05]} 54. Kb5
{[%clk 00:02:50]} {[%emt 00:00:01]} Kb7 {[%clk 00:00:21]} {[%emt 00:00:03]} 55.
c4 {[%clk 00:02:54]} {[%emt 00:00:01]} h5 {[%clk 00:00:24]} {[%emt 00:00:02]}
56. c5 {[%clk 00:02:58]} {[%emt 00:00:01]} g4 {[%clk 00:00:21]} {[%emt
00:00:08]} 57. c6+ {[%clk 00:03:02]} Ka8 {[%clk 00:00:23]} {[%emt 00:00:03]} 58.
Ka6 {[%clk 00:03:04]} {[%emt 00:00:03]} gxh3 {[%clk 00:00:18]} {[%emt
00:00:10]} 59. b7# {[%clk 00:03:08]} {[%emt 00:00:01]} 1-0

[Event "MCR rapid mládeže 2023 U16"]
[Site "Harachov, Czech Republic"]
[Date "2023.09.10"]
[Round "8.14"]
[White "Mikesova, Lenka"]
[Black "Lackova, Ludmila"]
[Result "1-0"]
[TimeControl "20min+5s/move"]
[WhiteElo "1410"]
[BlackElo "1479"]

1. e4 {[%clk 00:20:07]} {[%emt 00:00:02]} e5 {[%clk 00:20:09]} {[%emt
00:00:02]} 2. Nf3 {[%clk 00:20:11]} {[%emt 00:00:01]} Nf6 {[%clk 00:20:13]} 3.
Bc4 {[%clk 00:20:12]} {[%emt 00:00:04]} Nxe4 {[%clk 00:19:33]} {[%emt
00:00:45]} 4. Qe2 {[%clk 00:18:49]} {[%emt 00:01:28]} Nd6 {[%clk 00:19:34]}
{[%emt 00:00:04]} 5. Qxe5+ {[%clk 00:17:55]} {[%emt 00:00:59]} Qe7 {[%clk
00:19:18]} {[%emt 00:00:21]} 6. Qxe7+ {[%clk 00:17:49]} {[%emt 00:00:10]} Bxe7
{[%clk 00:19:19]} {[%emt 00:00:03]} 7. Bb3 {[%clk 00:17:51]} {[%emt 00:00:04]}
O-O {[%clk 00:19:20]} {[%emt 00:00:03]} 8. O-O {[%clk 00:17:39]} {[%emt
00:00:17]} Nc6 {[%clk 00:19:11]} {[%emt 00:00:15]} 9. d3 {[%clk 00:17:23]}
{[%emt 00:00:21]} Bf6 {[%clk 00:19:09]} {[%emt 00:00:07]} 10. c3 {[%clk
00:16:49]} {[%emt 00:00:39]} Nf5 {[%clk 00:18:04]} {[%emt 00:01:09]} 11. Bg5
{[%clk 00:16:04]} {[%emt 00:00:52]} Bxg5 {[%clk 00:17:11]} {[%emt 00:00:58]} 12.
Nxg5 {[%clk 00:16:07]} {[%emt 00:00:02]} h6 {[%clk 00:17:04]} {[%emt 00:00:12]}
13. Nf3 {[%clk 00:16:07]} {[%emt 00:00:05]} d6 {[%clk 00:16:48]} {[%emt
00:00:20]} 14. Re1 {[%clk 00:16:06]} {[%emt 00:00:06]} Bd7 {[%clk 00:16:48]}
{[%emt 00:00:05]} 15. Nbd2 {[%clk 00:15:45]} {[%emt 00:00:27]} Rfe8 {[%clk
00:16:48]} {[%emt 00:00:05]} 16. Nf1 {[%clk 00:14:54]} {[%emt 00:00:56]} Kf8
{[%clk 00:16:05]} {[%emt 00:00:47]} 17. Ne3 {[%clk 00:14:21]} {[%emt 00:00:38]}
Re7 {[%clk 00:15:05]} {[%emt 00:01:05]} 18. Nd5 {[%clk 00:13:50]} {[%emt
00:00:37]} Rxe1+ {[%clk 00:14:36]} {[%emt 00:00:34]} 19. Rxe1 {[%clk 00:13:53]}
{[%emt 00:00:02]} Rc8 {[%clk 00:14:09]} {[%emt 00:00:32]} 20. h3 {[%clk
00:11:40]} {[%emt 00:02:19]} Nce7 {[%clk 00:11:45]} {[%emt 00:02:28]} 21. Nxe7
{[%clk 00:11:18]} {[%emt 00:00:28]} Nxe7 {[%clk 00:11:48]} {[%emt 00:00:02]} 22.
Kf1 {[%clk 00:09:37]} {[%emt 00:01:46]} Nc6 {[%clk 00:11:30]} {[%emt 00:00:23]}
23. Re3 {[%clk 00:07:18]} {[%emt 00:02:23]} Re8 {[%clk 00:11:12]} {[%emt
00:00:22]} 24. Ke2 {[%clk 00:06:59]} {[%emt 00:00:25]} Rxe3+ {[%clk 00:10:10]}
{[%emt 00:01:08]} 25. Kxe3 {[%clk 00:07:01]} {[%emt 00:00:02]} Be6 {[%clk
00:09:45]} {[%emt 00:00:31]} 26. Bxe6 {[%clk 00:06:50]} {[%emt 00:00:15]} fxe6
{[%clk 00:09:48]} {[%emt 00:00:02]} 27. Nd4 {[%clk 00:05:53]} {[%emt 00:01:02]}
Nxd4 {[%clk 00:09:17]} {[%emt 00:00:36]} 28. Kxd4 {[%clk 00:05:57]} {[%emt
00:00:02]} Ke7 {[%clk 00:08:55]} {[%emt 00:00:27]} 29. c4 {[%clk 00:05:30]}
{[%emt 00:00:31]} e5+ {[%clk 00:08:39]} {[%emt 00:00:21]} 30. Ke4 {[%clk
00:05:18]} {[%emt 00:00:17]} Ke6 {[%clk 00:08:35]} {[%emt 00:00:08]} 31. f4
{[%clk 00:04:44]} {[%emt 00:00:40]} exf4 {[%clk 00:08:36]} {[%emt 00:00:04]} 32.
Kxf4 {[%clk 00:04:47]} {[%emt 00:00:02]} Kf6 {[%clk 00:04:57]} {[%emt
00:03:44]} 33. d4 {[%clk 00:03:54]} {[%emt 00:00:58]} c6 {[%clk 00:02:25]}
{[%emt 00:02:37]} 34. c5 {[%clk 00:02:40]} {[%emt 00:01:19]} dxc5 {[%clk
00:01:25]} {[%emt 00:01:05]} 35. dxc5 {[%clk 00:02:44]} {[%emt 00:00:02]} g6
{[%clk 00:01:21]} {[%emt 00:00:09]} 36. b4 {[%clk 00:02:01]} {[%emt 00:00:48]}
Ke6 {[%clk 00:01:08]} {[%emt 00:00:18]} 37. Ke4 {[%clk 00:02:03]} {[%emt
00:00:04]} Kf6 {[%clk 00:00:34]} {[%emt 00:00:39]} 38. a4 {[%clk 00:01:41]}
{[%emt 00:00:26]} a6 {[%clk 00:00:36]} {[%emt 00:00:03]} 39. g4 {[%clk
00:01:11]} {[%emt 00:00:35]} Ke6 {[%clk 00:00:15]} {[%emt 00:00:27]} 40. h4
{[%clk 00:00:56]} {[%emt 00:00:19]} h5 {[%clk 00:00:09]} {[%emt 00:00:10]} 41.
g5 {[%clk 00:00:56]} {[%emt 00:00:06]} Ke7 {[%clk 00:00:00]} {[%emt 00:00:09]}
1-0

[Event "MCR rapid mládeže 2023 U16"]
[Site "Harachov, Czech Republic"]
[Date "2023.09.10"]
[Round "8.15"]
[White "Boff, Ondrej"]
[Black "Mik, Tomas"]
[Result "1/2-1/2"]
[TimeControl "20min+5s/move"]
[WhiteElo "1486"]
[BlackElo "1802"]

1. e4 {[%clk 00:20:07]} {[%emt 00:00:02]} c5 {[%clk 00:20:09]} {[%emt
00:00:02]} 2. Nf3 {[%clk 00:20:10]} {[%emt 00:00:01]} e6 {[%clk 00:20:13]}
{[%emt 00:00:02]} 3. c4 {[%clk 00:20:13]} {[%emt 00:00:01]} d6 {[%clk
00:20:15]} {[%emt 00:00:04]} 4. d4 {[%clk 00:20:12]} {[%emt 00:00:05]} cxd4
{[%clk 00:20:18]} {[%emt 00:00:02]} 5. Nxd4 {[%clk 00:20:15]} {[%emt 00:00:02]}
Nf6 {[%clk 00:20:22]} {[%emt 00:00:01]} 6. Nc3 {[%clk 00:20:19]} {[%emt
00:00:01]} Be7 {[%clk 00:20:26]} {[%emt 00:00:02]} 7. Be2 {[%clk 00:20:14]}
{[%emt 00:00:10]} O-O {[%clk 00:20:22]} {[%emt 00:00:08]} 8. O-O {[%clk
00:20:08]} {[%emt 00:00:10]} Nc6 {[%clk 00:20:25]} {[%emt 00:00:03]} 9. Be3
{[%clk 00:20:10]} {[%emt 00:00:02]} Bd7 {[%clk 00:20:29]} {[%emt 00:00:02]} 10.
Qd2 {[%clk 00:19:59]} {[%emt 00:00:16]} Nxd4 {[%clk 00:20:25]} {[%emt
00:00:10]} 11. Bxd4 {[%clk 00:19:58]} {[%emt 00:00:04]} Bc6 {[%clk 00:20:28]}
{[%emt 00:00:03]} 12. f3 {[%clk 00:20:00]} {[%emt 00:00:04]} Qc7 {[%clk
00:19:23]} {[%emt 00:01:10]} 13. Rac1 {[%clk 00:19:37]} {[%emt 00:00:28]} a6
{[%clk 00:18:47]} {[%emt 00:00:41]} 14. Rfd1 {[%clk 00:19:28]} {[%emt
00:00:13]} Rfd8 {[%clk 00:18:31]} {[%emt 00:00:22]} 15. Nd5 {[%clk 00:17:45]}
{[%emt 00:01:48]} Bxd5 {[%clk 00:17:18]} {[%emt 00:01:18]} 16. cxd5 {[%clk
00:17:41]} {[%emt 00:00:09]} Qd7 {[%clk 00:17:12]} {[%emt 00:00:11]} 17. Bc4
{[%clk 00:12:24]} {[%emt 00:05:21]} e5 {[%clk 00:16:35]} {[%emt 00:00:42]} 18.
Be3 {[%clk 00:12:17]} {[%emt 00:00:11]} Rdc8 {[%clk 00:15:02]} {[%emt
00:01:40]} 19. Bb6 {[%clk 00:11:00]} {[%emt 00:01:20]} Bd8 {[%clk 00:14:01]}
{[%emt 00:01:07]} 20. Be3 {[%clk 00:08:38]} {[%emt 00:02:27]} Rc7 {[%clk
00:13:11]} {[%emt 00:00:56]} 21. Bf2 {[%clk 00:06:31]} {[%emt 00:02:10]} Rac8
{[%clk 00:12:55]} {[%emt 00:00:22]} 22. Bd3 {[%clk 00:05:54]} {[%emt 00:00:39]}
h6 {[%clk 00:11:36]} {[%emt 00:01:27]} 23. Be3 {[%clk 00:04:29]} {[%emt
00:01:30]} Kh7 {[%clk 00:10:40]} {[%emt 00:01:01]} 24. Rxc7 {[%clk 00:04:17]}
{[%emt 00:00:17]} Qxc7 {[%clk 00:09:59]} {[%emt 00:00:46]} 25. Kf1 {[%clk
00:03:37]} {[%emt 00:00:45]} Nd7 {[%clk 00:09:33]} {[%emt 00:00:32]} 26. Ke2
{[%clk 00:02:47]} {[%emt 00:00:54]} Qa5 {[%clk 00:08:09]} {[%emt 00:01:29]} 27.
Qxa5 {[%clk 00:02:00]} {[%emt 00:00:52]} Bxa5 {[%clk 00:08:06]} {[%emt
00:00:09]} 1/2-1/2

[Event "MCR rapid mládeže 2023 U16"]
[Site "Harachov, Czech Republic"]
[Date "2023.09.10"]
[Round "8.16"]
[White "Svadlenka, Michal"]
[Black "Honcharov, Makar"]
[Result "1-0"]
[TimeControl "20min+5s/move"]
[WhiteElo "1451"]
[BlackElo "1593"]

1. e4 {[%clk 00:20:08]} {[%emt 00:00:01]} c5 {[%clk 00:20:10]} {[%emt
00:00:02]} 2. Nf3 {[%emt 00:00:01]} d6 3. d4 {[%clk 00:20:16]} {[%emt
00:00:01]} cxd4 {[%clk 00:20:18]} {[%emt 00:00:01]} 4. Nxd4 {[%clk 00:20:20]}
{[%emt 00:00:01]} Nf6 {[%clk 00:20:23]} 5. Nc3 {[%clk 00:20:24]} {[%emt
00:00:01]} g6 {[%clk 00:20:27]} {[%emt 00:00:01]} 6. Be3 {[%clk 00:20:27]} Bg7
{[%clk 00:20:31]} {[%emt 00:00:01]} 7. f3 {[%clk 00:20:31]} {[%emt 00:00:01]}
a6 {[%clk 00:20:35]} {[%emt 00:00:01]} 8. Qd2 {[%clk 00:20:32]} {[%emt
00:00:04]} h5 {[%clk 00:20:39]} {[%emt 00:00:01]} 9. O-O-O {[%clk 00:20:26]}
{[%emt 00:00:10]} b5 {[%clk 00:20:42]} {[%emt 00:00:02]} 10. Be2 {[%clk
00:20:00]} {[%emt 00:00:32]} Bb7 {[%clk 00:20:44]} {[%emt 00:00:03]} 11. h4
{[%clk 00:19:18]} {[%emt 00:00:47]} Nbd7 {[%clk 00:20:45]} {[%emt 00:00:04]} 12.
Nb3 {[%clk 00:18:01]} {[%emt 00:01:21]} Rc8 {[%clk 00:20:43]} {[%emt 00:00:07]}
13. Nd5 {[%clk 00:14:52]} {[%emt 00:03:15]} Bxd5 {[%clk 00:20:22]} {[%emt
00:00:25]} 14. exd5 {[%clk 00:14:55]} {[%emt 00:00:03]} Ne5 {[%clk 00:20:26]}
{[%emt 00:00:01]} 15. Kb1 {[%clk 00:12:29]} {[%emt 00:02:31]} Qc7 {[%clk
00:20:14]} {[%emt 00:00:17]} 16. Rhe1 {[%clk 00:10:26]} {[%emt 00:02:08]} b4
{[%clk 00:15:28]} {[%emt 00:04:51]} 17. Bxa6 {[%clk 00:06:21]} {[%emt
00:04:10]} O-O {[%clk 00:13:14]} {[%emt 00:02:19]} 18. Bxc8 {[%clk 00:05:51]}
{[%emt 00:00:36]} Rxc8 {[%clk 00:13:09]} {[%emt 00:00:09]} 19. Qf2 {[%clk
00:05:20]} {[%emt 00:00:36]} Nc4 {[%clk 00:12:36]} {[%emt 00:00:38]} 20. Bd4
{[%clk 00:04:59]} {[%emt 00:00:26]} Nxd5 {[%clk 00:11:18]} {[%emt 00:01:23]} 21.
Bxg7 {[%clk 00:04:56]} {[%emt 00:00:07]} Na3+ {[%clk 00:10:31]} {[%emt
00:00:52]} 22. bxa3 {[%clk 00:04:41]} {[%emt 00:00:20]} bxa3 {[%clk 00:08:12]}
{[%emt 00:02:24]} 23. Rxd5 {[%clk 00:04:35]} {[%emt 00:00:11]} Kxg7 {[%clk
00:07:00]} {[%emt 00:01:18]} 24. Rd3 {[%clk 00:04:27]} {[%emt 00:00:12]} e5
{[%clk 00:06:47]} {[%emt 00:00:18]} 25. Ree3 {[%clk 00:04:14]} {[%emt
00:00:17]} Qa7 {[%clk 00:06:32]} {[%emt 00:00:20]} 26. Re2 {[%clk 00:04:03]}
{[%emt 00:00:16]} Qc7 {[%clk 00:06:36]} {[%emt 00:00:02]} 27. Ree3 {[%clk
00:03:45]} {[%emt 00:00:22]} Qa7 {[%clk 00:06:35]} {[%emt 00:00:07]} 28. Qe1
{[%clk 00:03:42]} {[%emt 00:00:08]} Qc7 {[%clk 00:06:21]} {[%emt 00:00:19]} 29.
Qd2 {[%clk 00:03:24]} {[%emt 00:00:22]} Qe7 {[%clk 00:04:01]} {[%emt 00:02:25]}
30. Rxd6 {[%clk 00:03:16]} {[%emt 00:00:13]} Qxh4 {[%clk 00:04:04]} {[%emt
00:00:03]} 31. Qe1 {[%clk 00:02:27]} {[%emt 00:00:53]} Qc4 {[%clk 00:03:38]}
{[%emt 00:00:31]} 32. Qe2 {[%clk 00:02:22]} {[%emt 00:00:10]} Qb4 {[%clk
00:01:33]} {[%emt 00:02:10]} 33. Rdd3 {[%clk 00:02:13]} {[%emt 00:00:14]} f6
{[%clk 00:00:31]} {[%emt 00:01:07]} 34. Qd2 {[%clk 00:02:09]} {[%emt 00:00:09]}
Qb6 {[%clk 00:00:26]} {[%emt 00:00:11]} 35. Rd7+ {[%clk 00:01:50]} {[%emt
00:00:23]} Kg8 {[%clk 00:00:20]} {[%emt 00:00:12]} 36. Rd6 {[%clk 00:01:29]}
{[%emt 00:00:26]} Qb5 {[%clk 00:00:07]} {[%emt 00:00:19]} 37. Qd5+ {[%clk
00:01:23]} {[%emt 00:00:10]} Qxd5 {[%clk 00:00:09]} {[%emt 00:00:04]} 38. Rxd5
{[%clk 00:01:28]} {[%emt 00:00:01]} Rc4 {[%clk 00:00:10]} {[%emt 00:00:03]} 39.
Ra5 {[%clk 00:01:21]} {[%emt 00:00:12]} 1-0